bitfinex-derivatives/quotes_SOLF0:USTF0_20240906
["timestamp","ask_amount","ask_price","bid_price","bid_amount"]
[1725627263825,43.01,134.01,134.0,533.75902]
[1725627264032,46.7416,134.01,134.0,533.75902]
[1725627264623,3.67375293,134.01,134.0,533.75902]
[1725627264822,43.01,134.03,134.0,533.75902]
[1725627265329,0.05542638,134.04,134.0,533.75902]
[1725627265523,3.88111686,134.04,134.0,533.75902]
[1725627265728,0.05542638,134.04,134.0,533.75902]
[1725627266223,46.78920297,134.04,134.0,533.75902]
[1725627266532,3.7313,134.03,134.0,533.75902]
[1725627266830,7.43723817,134.03,134.0,533.75902]
[1725627267432,3.7313,134.02,134.0,533.75902]
[1725627267632,3.70593817,134.03,134.0,533.75902]
[1725627267832,43.06542638,134.04,134.0,533.75902]
[1725627268040,3.7315,134.02,134.0,533.75902]
[1725627268534,3.7315,134.02,134.0,533.80693654]
[1725627268734,7.44640053,134.02,134.0,533.80693654]
[1725627268934,3.71490053,134.02,134.0,533.80693654]
[1725627269135,43.06542638,134.04,134.0,533.80693654]
[1725627269331,43.06542638,134.04,134.0,537.53873654]
[1725627269332,3.7572568,134.04,134.0,537.53873654]
[1725627269729,0.05542638,134.04,134.0,533.80693654]
[1725627270338,0.05542638,134.04,134.01,3.7315]
[1725627270840,0.05542638,134.04,134.0,533.80693654]
[1725627271333,0.05542638,134.04,134.01,2.5926]
[1725627271731,0.05542638,134.04,134.02,3.7311]
[1725627271934,0.05542638,134.04,134.01,2.5926]
[1725627272740,3.85741077,134.04,134.01,2.5926]
[1725627272933,3.85741077,134.04,134.0,537.53873654]
[1725627273137,3.85741077,134.04,134.0,533.80693654]
[1725627273348,46.86741077,134.04,134.0,533.80693654]
[1725627273937,3.85741077,134.04,134.01,3.7314]
[1725627274241,3.85741077,134.04,134.0,533.80693654]
[1725627275033,3.85741077,134.04,134.0,537.53873654]
[1725627275233,46.86741077,134.04,134.0,533.80693654]
[1725627275436,3.7312,134.03,134.0,533.80693654]
[1725627275632,46.86741077,134.04,134.0,533.80693654]
[1725627276143,50.59821077,134.04,134.0,533.80693654]
[1725627276347,46.86741077,134.04,134.0,533.80693654]
[1725627276547,3.85741077,134.04,134.0,533.80693654]
[1725627276735,3.85741077,134.04,134.0,537.53863654]
[1725627277545,3.85741077,134.04,134.01,3.7315]
[1725627277842,3.85741077,134.04,134.0,533.80693654]
[1725627278645,3.85741077,134.04,134.0,537.53863654]
[1725627278836,3.85741077,134.04,134.0,533.80693654]
[1725627279239,3.85741077,134.04,134.02,3.7311]
[1725627279640,3.85741077,134.04,134.0,533.80693654]
[1725627280536,3.85741077,134.04,134.02,3.7312]
[1725627280737,0.05542638,134.04,134.0,533.80693654]
[1725627281344,43.06542638,134.04,134.0,533.80693654]
[1725627281746,50.55154701,134.04,134.0,533.80693654]
[1725627282048,43.06542638,134.04,134.0,533.80693654]
[1725627282248,3.69951695,134.04,134.0,533.80693654]
[1725627283335,3.69951695,134.04,134.01,3.7315]
[1725627283941,3.69951695,134.04,134.0,537.53863654]
[1725627284343,0.05542638,134.04,134.0,537.53863654]
[1725627284547,43.01,134.02,134.0,330.84609171]
[1725627284843,46.83316519,134.02,134.0,319.50738382]
[1725627285048,3.7316,134.01,134.0,279.20758382]
[1725627285647,3.7316,134.01,134.0,276.20758382]
[1725627285844,3.6880975,134.01,134.0,276.20758382]
[1725627286045,0.05542638,134.04,134.0,276.20758382]
[1725627286046,34.46542638,134.04,134.0,276.20758382]
[1725627286744,38.21925605,134.04,134.0,279.93928382]
[1725627287146,41.95005605,134.04,134.0,276.20758382]
[1725627287842,34.41,134.01,134.0,276.20758382]
[1725627288043,34.41,134.01,134.0,88.31758382]
[1725627288354,34.41,134.01,134.0,85.56758382]
[1725627288542,38.1416,134.01,134.0,82.56758382]
[1725627289049,38.1416,134.01,134.0,14.43758382]
[1725627289549,41.90784663,134.01,134.0,11.43758382]
[1725627289844,34.41,134.01,134.0,7.83758382]
[1725627290049,43.01,134.03,134.0,7.83758382]
[1725627290846,43.01,134.03,134.0,11.56928382]
[1725627291240,43.01,134.03,134.0,7.83758382]
[1725627291451,3.73652634,134.04,134.0,7.83758382]
[1725627291648,43.01,134.03,134.0,7.83758382]
[1725627292454,46.7412,134.03,134.0,7.83758382]
[1725627292644,46.74291995,134.03,134.0,7.83758382]
[1725627292841,43.01,134.01,133.92,2.7194]
[1725627293644,3.68064339,134.04,133.92,2.7194]
[1725627293645,43.01,134.03,133.92,2.7194]
[1725627293851,3.7317,134.01,133.92,2.7194]
[1725627294153,46.6820551,134.01,133.94,3.7333]
[1725627294344,43.01,133.98,133.92,2.7194]
[1725627294848,0.05189467,133.99,133.92,2.7194]
[1725627295243,0.05189467,133.99,133.97,3.7326]
[1725627295444,0.05189467,133.99,133.92,2.7194]
[1725627295947,0.05189467,133.99,133.95,3.733]
[1725627296144,0.05189467,133.99,133.96,2.5636]
[1725627296757,0.05189467,133.99,133.96,6.2966]
[1725627296953,46.7425,133.98,133.92,2.7194]
[1725627297152,43.01,133.98,133.92,9.0169]
[1725627297450,0.05189467,133.99,133.92,2.5636]
[1725627297451,43.01,133.96,133.92,2.5636]
[1725627298253,0.04727003,133.95,133.92,2.5636]
[1725627298653,0.04727003,133.95,133.9,3.7345]
[1725627298951,43.01,133.94,133.89,2.741]
[1725627299154,43.01,133.92,133.81,43.01]
[1725627299453,43.01,133.92,133.82,5.3945]
[1725627299653,3.734,133.93,133.83,43.01]
[1725627299850,0.05153257,133.88,133.85,0.05235779]
[1725627300343,46.79164334,133.88,133.85,0.05235779]
[1725627300547,0.05153257,133.88,133.85,0.05235779]
[1725627300953,43.01,133.87,133.79,2.609]
[1725627301457,43.01,133.91,133.8,45.6519]
[1725627301750,50.4725,134.03,133.8,45.6519]
[1725627301751,25.50478849,134.01,133.85,43.01]
[1725627301944,43.01,133.95,133.86,2.609]
[1725627302148,43.01,133.95,133.87,2.6419]
[1725627302149,43.01,133.93,133.87,2.6419]
[1725627302553,43.01,133.91,133.87,2.6419]
[1725627303143,43.01,133.91,133.88,0.05602669]
[1725627303344,0.05005681,133.9,133.88,0.05602669]
[1725627303754,43.01,133.93,133.88,0.05602669]
[1725627303755,43.01,133.93,133.88,2.69242669]
[1725627303953,43.01,133.93,133.89,3.7348]
[1725627304553,43.01,133.93,133.88,6.42752669]
[1725627305056,0.05453515,133.92,133.9,3.7346]
[1725627305253,0.05453515,133.92,133.88,2.69242669]
[1725627305956,0.05453515,133.92,133.88,6.42752669]
[1725627306264,0.05453515,133.92,133.88,2.69242669]
[1725627306465,46.7444,133.91,133.88,2.69242669]
[1725627306760,43.01,133.91,133.88,2.69242669]
[1725627307255,0.05453515,133.92,133.88,2.69242669]
[1725627307457,0.05453515,133.92,133.88,6.42742669]
[1725627307654,0.05453515,133.92,133.88,2.69242669]
[1725627307855,43.01,133.96,133.88,2.69242669]
[1725627308054,43.01,133.96,133.91,3.7342]
[1725627308256,43.01,133.94,133.88,2.69242669]
[1725627308457,43.01,133.89,133.86,2.609]
[1725627309269,43.06192297,133.89,133.86,2.609]
[1725627309570,6.41664578,134.0,133.86,2.609]
[1725627309571,43.01,133.96,133.86,2.609]
[1725627309767,46.7431,133.96,133.86,2.609]
[1725627310362,46.7431,133.96,133.9,3.7345]
[1725627310860,0.05280932,133.92,133.89,3.7349]
[1725627311369,43.01,133.96,133.89,0.04728054]
[1725627311572,43.01,133.96,133.9,3.7345]
[1725627311771,43.01,133.96,133.89,0.04728054]
[1725627312469,0.05725919,133.94,133.89,0.04728054]
[1725627312867,43.01,133.98,133.89,0.04728054]
[1725627313269,43.01,133.98,133.87,43.01]
[1725627313270,43.01,133.98,133.93,3.7337]
[1725627313472,43.01,133.98,133.94,2.609]
[1725627313976,228.0,134.14,133.94,2.609]
[1725627314169,43.01,133.99,133.95,0.05653641]
[1725627314365,46.8095881,133.99,133.94,2.609]
[1725627314873,43.01,133.99,133.96,0.05204733]
[1725627315376,43.01,134.01,133.96,0.05204733]
[1725627315874,3.65505892,134.01,133.96,0.05204733]
[1725627316168,3.7316,134.01,133.96,0.05204733]
[1725627316375,3.67074266,134.0,133.96,0.05204733]
[1725627316763,43.01,134.02,133.96,0.05204733]
[1725627316969,46.83011164,134.02,133.96,0.05204733]
[1725627317170,3.732,134.0,133.96,0.05204733]
[1725627317369,46.83011164,134.02,133.96,0.05204733]
[1725627317571,43.01,134.0,133.96,0.05204733]
[1725627317964,3.7326,133.98,133.96,0.05204733]
[1725627318171,46.82648558,134.0,133.96,0.05204733]
[1725627318172,43.01,133.97,133.96,0.05204733]
[1725627318384,43.01,133.97,133.86,3.7810025]
[1725627319171,43.01,133.97,133.87,5.2803]
[1725627319570,5.3453,133.99,133.91,0.05112038]
[1725627319873,0.05602238,133.93,133.91,0.05112038]
[1725627320272,3.7312,134.03,133.97,3.7325]
[1725627320472,3.7312,134.03,133.91,43.06112038]
[1725627320679,43.01,134.04,133.91,43.01]
[1725627320975,43.01,134.04,133.92,3.70069868]
[1725627321178,43.01,134.04,133.96,0.05498908]
[1725627321473,3.7312,134.03,133.96,3.78768908]
[1725627321675,3.7312,134.03,133.97,2.5753]
[1725627322078,43.01,134.04,133.97,2.5753]
[1725627322277,43.01,134.02,133.97,2.5753]
[1725627322477,3.81431404,134.01,133.97,2.5753]
[1725627322984,3.81431404,134.01,133.98,0.04794789]
[1725627323476,43.01,134.04,133.98,0.04794789]
[1725627323883,0.04762924,134.01,133.98,0.04794789]
[1725627324080,3.71371671,134.01,133.97,2.5753]
[1725627324480,3.71371671,134.01,133.98,0.05002441]
[1725627325375,0.04762924,134.01,133.98,0.05002441]
[1725627328380,266.6942158,134.18,133.98,0.05002441]
[1725627328681,48.3727,134.13,134.01,43.01]
[1725627328884,48.3727,134.13,134.02,2.5968]
[1725627329777,48.3727,134.13,134.06,0.05592741]
[1725627330378,48.3727,134.13,134.08,3.7296]
[1725627330574,48.3727,134.13,134.06,0.05592741]
[1725627330886,43.01,134.11,134.02,2.5968]
[1725627331180,43.01,134.11,134.08,0.05392273]
[1725627331686,43.01,134.11,134.06,3.7302]
[1725627332086,43.01,134.11,134.08,0.04853273]
[1725627332679,43.01,134.11,134.02,2.5968]
[1725627333174,43.01,134.11,134.08,0.0509544]
[1725627333480,46.7383,134.13,134.02,2.5968]
[1725627333680,46.7383,134.13,134.08,0.05469765]
[1725627334580,3.7285,134.12,134.08,0.05469765]
[1725627335690,0.0508987,134.11,134.08,0.05469765]
[1725627336482,0.0508987,134.11,134.08,3.78429765]
[1725627336681,0.0508987,134.11,134.08,0.05469765]
[1725627337900,0.0508987,134.11,134.03,2.5937]
[1725627338088,3.7295,134.09,134.03,2.5937]
[1725627338386,0.0508987,134.11,134.03,2.5937]
[1725627338589,3.7293,134.1,134.05,3.7303]
[1725627338793,45.637,134.12,134.03,2.5937]
[1725627339181,45.637,134.12,134.06,0.04969128]
[1725627339585,3.7295,134.09,134.06,0.04969128]
[1725627341587,2.6244,134.11,134.06,0.04969128]
[1725627341983,2.6244,134.11,134.06,3.77969128]
[1725627342181,3.7292,134.1,134.06,3.77969128]
[1725627342388,2.6244,134.11,134.06,0.04969128]
[1725627342780,3.7293,134.1,134.06,0.04969128]
[1725627342985,2.6244,134.11,134.06,3.77979128]
[1725627343187,5.3922,134.11,134.06,3.77979128]
[1725627343386,3.7292,134.1,134.06,3.77979128]
[1725627344088,2.7678,134.11,134.08,3.7295]
[1725627344296,2.7678,134.11,134.06,0.04969128]
[1725627344995,2.7678,134.11,134.07,3.7297]
[1725627345788,6.4966,134.11,134.06,3.77979128]
[1725627346195,2.7678,134.11,134.06,0.04969128]
[1725627346384,2.7678,134.11,134.07,3.7297]
[1725627347688,6.4967,134.11,134.06,0.04969128]
[1725627348096,2.7678,134.11,134.06,0.04969128]
[1725627349396,2.7678,134.11,134.07,3.7298]
[1725627350990,2.7678,134.11,134.06,34.44969128]
[1725627351193,0.04815995,134.1,134.06,34.44969128]
[1725627351994,0.04815995,134.1,134.07,3.7298]
[1725627353804,0.04815995,134.1,134.06,34.44969128]
[1725627354199,0.04815995,134.1,134.07,3.7299]
[1725627354604,0.04815995,134.1,134.06,0.04969128]
[1725627354899,0.04815995,134.1,134.08,3.7296]
[1725627356106,0.04815995,134.1,134.07,3.7298]
[1725627357105,0.04815995,134.1,134.06,0.04969128]
[1725627357503,0.04815995,134.1,134.07,3.7297]
[1725627358402,0.04815995,134.1,134.06,0.04969128]
[1725627358403,0.04815995,134.1,134.08,3.7295]
[1725627359104,0.04815995,134.1,134.07,3.7298]
[1725627359308,0.04815995,134.1,134.06,0.04969128]
[1725627359497,34.4,134.09,134.06,0.04969128]
[1725627359699,0.04815995,134.1,134.06,0.04969128]
[1725627359700,34.42815995,134.1,134.06,0.04969128]
[1725627360103,34.42815995,134.1,134.0,34.38]
[1725627360307,34.42815995,134.1,134.03,3.7308]
[1725627360503,2.7678,134.11,133.93,7.4673]
[1725627360504,34.38,134.08,133.93,7.4673]
[1725627360702,3.7309,134.04,133.96,37.0087]
[1725627360903,3.7309,134.04,133.98,34.38]
[1725627360904,3.64635258,134.04,133.98,34.38]
[1725627361103,2.7199,134.06,134.0,34.38]
[1725627361312,2.7199,134.06,134.03,3.7309]
[1725627361512,0.04873839,134.02,134.01,3.80495455]
[1725627361701,6.4967,134.11,134.06,3.73]
[1725627363519,6.4967,134.11,134.07,0.04820357]
[1725627364009,2.7678,134.11,134.07,0.04820357]
[1725627364310,3.7294,134.09,134.07,0.04820357]
[1725627364509,2.7678,134.11,134.0,34.38]
[1725627364705,34.38,134.1,134.0,34.38]
[1725627364915,3.7301,134.07,134.02,3.7312]
[1725627365106,3.7301,134.07,134.0,34.38]
[1725627365312,3.73200041,134.06,134.0,34.38]
[1725627365510,2.7678,134.11,134.0,34.38]
[1725627365709,2.7678,134.11,134.02,34.38]
[1725627365911,0.04973942,134.04,134.03,3.731]
[1725627366415,3.8169847,134.07,133.97,7.465]
[1725627366617,3.65391672,134.07,134.0,34.38]
[1725627366815,34.38,134.1,133.99,34.38]
[1725627367022,0.0542088,134.05,133.99,34.38]
[1725627367314,0.0542088,134.05,134.01,34.38]
[1725627367915,3.79272974,134.08,134.01,34.38]
[1725627368116,3.7298,134.08,134.03,3.7308]
[1725627368311,0.04724415,134.04,134.03,3.7308]
[1725627368514,3.6964562,134.07,134.03,3.7308]
[1725627368814,34.38,134.09,134.02,3.7312]
[1725627369022,0.05119083,134.05,134.02,3.7312]
[1725627370119,0.05119083,134.05,134.0,34.38]
[1725627370521,38.06190322,134.09,134.0,34.38]
[1725627370721,3.7299,134.07,134.0,34.38]
[1725627370921,0.05707715,134.04,134.0,34.38]
[1725627371126,0.05707715,134.04,134.03,3.731]
[1725627372620,2.7199,134.13,134.02,34.43271564]
[1725627372814,6.42969561,134.13,134.05,34.38]
[1725627373019,3.7289,134.11,134.05,34.38]
[1725627373222,3.7131539,134.1,134.06,3.73]
[1725627373530,3.7289,134.11,134.06,3.73]
[1725627373826,3.7289,134.11,134.07,3.78012694]
[1725627374124,3.7292,134.1,134.07,0.05022694]
[1725627374627,3.7370351,134.1,134.0,34.38]
[1725627374828,34.38,134.09,134.0,34.38]
[1725627375126,3.73,134.07,134.0,34.38]
[1725627375326,3.66315263,134.06,134.0,34.38]
[1725627375528,34.38,134.09,134.02,3.7313]
[1725627375720,34.38,134.09,133.98,34.38]
[1725627376030,0.05114415,134.07,134.04,0.04781233]
[1725627376224,0.05114415,134.07,133.95,34.38]
[1725627376225,34.38,134.06,133.95,34.38]
[1725627376421,2.585,134.05,133.95,34.38]
[1725627376720,2.585,134.05,133.92,2.5898]
[1725627376721,34.38,134.04,133.92,2.5898]
[1725627376921,37.0592,134.04,133.92,36.9698]
[1725627377522,0.05706307,133.99,133.92,36.9698]
[1725627377923,0.05706307,133.99,133.97,3.7325]
[1725627378321,0.05706307,133.99,133.95,3.7331]
[1725627378630,0.05706307,133.99,133.89,34.5241]
[1725627378631,2.70626307,133.99,133.89,34.5241]
[1725627378822,6.45985121,133.99,133.89,34.5241]
[1725627379124,37.0592,134.04,133.93,34.38]
[1725627379332,0.05218064,133.95,133.93,34.38]
[1725627379732,3.65271773,133.99,133.93,34.38]
[1725627380024,2.6492,134.03,133.95,34.38]
[1725627380225,2.6492,134.03,133.93,34.38]
[1725627380427,0.0552381,133.97,133.93,34.38]
[1725627381129,0.0552381,133.97,133.96,3.733]
[1725627382227,0.0552381,133.97,133.95,3.7331]
[1725627382534,0.0552381,133.97,133.95,0.0519973]
[1725627383330,0.0552381,133.97,133.96,3.733]
[1725627385033,0.0552381,133.97,133.95,0.0519973]
[1725627385034,34.4352381,133.97,133.95,0.0519973]
[1725627385236,34.4352381,133.97,133.87,37.1758]
[1725627385730,0.0552381,133.97,133.91,34.38]
[1725627385936,3.72852815,133.99,133.88,7.47]
[1725627386131,34.38,134.04,133.98,3.7324]
[1725627386333,34.38,134.04,133.92,34.38]
[1725627386537,38.111,134.04,133.97,3.7325]
[1725627386827,38.111,134.04,133.92,34.38]
[1725627386828,0.04778438,133.95,133.92,34.38]
[1725627387236,3.69079187,133.98,133.92,34.38]
[1725627387428,34.38,134.04,133.92,34.38]
[1725627387628,37.1423,134.05,133.95,34.38]
[1725627387937,40.96309142,134.05,134.0,3.7317]
[1725627388133,40.96309142,134.05,133.95,34.38]
[1725627388437,0.05670644,134.01,133.99,0.05058244]
[1725627390633,0.05670644,134.01,133.99,3.78258244]
[1725627390836,0.05670644,134.01,133.99,34.43058244]
[1725627391136,2.7846,134.1,134.01,34.38]
[1725627391338,34.38,134.14,134.01,34.38]
[1725627391534,8.375,134.16,134.0,5.2421]
[1725627391733,34.38,134.09,134.0,5.2421]
[1725627391927,3.74496266,134.08,134.0,5.2421]
[1725627392339,0.04842149,134.06,134.0,5.2421]
[1725627392537,0.04842149,134.06,134.03,3.7308]
[1725627392743,0.04842149,134.06,134.0,5.2421]
[1725627392744,0.04842149,134.06,134.0,39.6221]
[1725627393432,0.04842149,134.06,134.04,3.7305]
[1725627393627,0.04842149,134.06,134.0,5.2421]
[1725627394037,0.04842149,134.06,134.04,0.05512764]
[1725627394741,34.38,134.13,134.04,0.05512764]
[1725627395031,38.07840697,134.13,134.04,0.05512764]
[1725627395337,41.80680697,134.13,134.02,34.38]
[1725627395838,38.07840697,134.13,134.02,34.38]
[1725627396331,38.07840697,134.13,134.07,3.7297]
[1725627396532,38.07840697,134.13,134.02,34.38]
[1725627396729,34.38,134.11,134.0,39.6221]
[1725627396932,34.43636515,134.11,134.0,39.6221]
[1725627397234,34.38,134.11,134.04,3.7307]
[1725627397429,3.69840697,134.13,134.0,39.6221]
[1725627397641,3.69840697,134.13,134.05,3.7303]
[1725627397642,3.7288,134.12,134.05,3.7303]
[1725627397841,6.42488362,134.15,134.04,34.38]
[1725627398137,2.6954,134.15,134.1,3.7289]
[1725627398338,0.04838624,134.11,134.08,0.0505114]
[1725627399030,28.65,134.18,134.08,0.0505114]
[1725627399234,8.3292,134.21,134.08,0.0505114]
[1725627399440,28.65,134.17,134.08,0.0505114]
[1725627399833,28.65,134.15,134.08,0.0505114]
[1725627400143,8.3292,134.21,134.07,5.4461]
[1725627400454,35.79,134.1,134.02,3.731]
[1725627400742,35.79,134.1,134.02,2.7171]
[1725627401130,35.79,134.06,134.02,2.7171]
[1725627401329,35.79,134.06,133.93,35.79]
[1725627401538,35.79,134.06,133.94,2.69]
[1725627401727,8.0011,134.1,133.94,41.1971]
[1725627401937,35.79,134.06,133.94,41.1971]
[1725627402137,35.79,134.06,133.96,3.7327]
[1725627402331,35.79,134.06,133.94,41.1971]
[1725627402737,35.79,134.04,133.99,0.05498383]
[1725627402936,35.79,134.01,133.99,0.05498383]
[1725627403338,35.79,134.01,133.94,2.7171]
[1725627403540,35.79,134.01,133.9,2.7013]
[1725627403541,35.79,133.97,133.9,2.7013]
[1725627403843,35.79,133.97,133.9,2.5711]
[1725627404041,0.05130994,133.95,133.9,2.5711]
[1725627404230,0.05130994,133.95,133.92,0.05113349]
[1725627404231,35.84130994,133.95,133.92,0.05113349]
[1725627404434,3.71864444,133.94,133.92,0.05113349]
[1725627404638,35.84130994,133.95,133.86,5.1206]
[1725627404639,35.79,133.93,133.86,2.5711]
[1725627404940,35.79,133.9,133.81,5.1206]
[1725627405245,35.79,133.92,133.84,3.7363]
[1725627405441,35.79,133.92,133.81,5.1206]
[1725627405941,39.5241,133.92,133.82,3.7368]
[1725627406247,0.05182679,133.88,133.82,3.7368]
[1725627406943,0.05182679,133.88,133.81,5.1206]
[1725627407645,0.05182679,133.88,133.81,8.8575]
[1725627407846,0.05182679,133.88,133.81,2.5711]
[1725627408034,35.84182679,133.88,133.81,2.5711]
[1725627408235,3.7357,133.87,133.78,3.7378]
[1725627408442,35.79,133.86,133.77,2.6396]
[1725627408639,3.7363,133.85,133.77,6.3778]
[1725627408940,2.7736,133.87,133.77,2.6396]
[1725627408941,6.52546991,133.87,133.77,2.6396]
[1725627409444,3.75186991,133.87,133.77,2.6396]
[1725627409641,35.79,133.88,133.78,38.3984]
[1725627409836,0.05251985,133.83,133.8,35.79]
[1725627410040,41.3498,133.92,133.81,0.04881058]
[1725627410235,35.79,133.9,133.81,0.04881058]
[1725627410443,35.79,133.88,133.81,0.04881058]
[1725627410642,3.73729446,133.87,133.78,2.6084]
[1725627410834,35.79,133.86,133.78,2.6084]
[1725627411040,39.48319439,133.86,133.78,6.3463]
[1725627411236,39.48319439,133.86,133.77,2.6396]
[1725627411439,2.7816,133.85,133.81,0.0475663]
[1725627412535,35.79,133.84,133.81,0.0475663]
[1725627412740,35.79,133.84,133.72,3.7395]
[1725627412944,8.2556,133.85,133.72,3.7395]
[1725627412945,35.79,133.79,133.72,3.7395]
[1725627413243,35.79,133.79,133.67,35.79]
[1725627413444,35.79,133.81,133.69,35.79]
[1725627413646,35.79,133.77,133.65,35.79]
[1725627414445,3.7388,133.76,133.69,3.7403]
[1725627414638,0.05329502,133.72,133.65,35.79]
[1725627415145,0.05329502,133.72,133.67,35.79]
[1725627415945,0.05329502,133.72,133.68,0.04915306]
[1725627417647,0.05329502,133.72,133.69,3.7403]
[1725627417941,0.05329502,133.72,133.68,0.04915306]
[1725627418343,3.84024212,133.72,133.68,0.04915306]
[1725627418541,3.7404,133.7,133.68,0.04915306]
[1725627418743,35.79,133.71,133.68,0.04915306]
[1725627418940,38.5214,133.71,133.68,0.04915306]
[1725627419145,2.7314,133.71,133.68,0.04915306]
[1725627419648,3.7405,133.69,133.68,0.04915306]
[1725627419951,2.7314,133.71,133.68,0.04915306]
[1725627420550,0.05329502,133.72,133.68,0.04915306]
[1725627421353,35.79,133.83,133.71,35.79]
[1725627421553,2.5714,133.82,133.72,2.6786]
[1725627421850,2.7505,133.84,133.73,35.79]
[1725627422254,35.79,133.83,133.72,2.6786]
[1725627422558,35.79,133.8,133.72,2.6786]
[1725627422754,35.79,133.8,133.77,0.05584079]
[1725627422948,35.79,133.83,133.77,0.05584079]
[1725627423252,2.7505,133.84,133.77,0.05584079]
[1725627423444,0.04956326,133.81,133.77,0.05584079]
[1725627423850,3.7376,133.8,133.77,0.05584079]
[1725627424053,0.04956326,133.81,133.77,0.05584079]
[1725627424354,3.7379,133.79,133.77,0.05584079]
[1725627424558,35.79,133.78,133.66,35.79]
[1725627424760,35.79,133.76,133.65,5.2718]
[1725627424955,35.79,133.76,133.68,3.7406]
[1725627425156,45.0431157,133.78,133.66,35.79]
[1725627425355,3.7385,133.77,133.66,35.79]
[1725627425558,41.2544,133.78,133.66,35.79]
[1725627425754,3.72138735,133.77,133.66,35.79]
[1725627425956,0.04985405,133.73,133.7,3.7402]
[1725627426254,35.79,133.71,133.6,35.79]
[1725627426655,3.7405,133.69,133.63,3.7421]
[1725627426958,35.79,133.71,133.6,35.79]
[1725627427152,35.79,133.71,133.64,3.7418]
[1725627427462,0.05594662,133.67,133.6,35.79]
[1725627427650,0.05594662,133.67,133.63,3.742]
[1725627428654,0.05594662,133.67,133.59,2.6713]
[1725627429253,0.05594662,133.67,133.61,3.7425]
[1725627429655,0.05594662,133.67,133.62,3.7423]
[1725627429964,0.05594662,133.67,133.59,2.6713]
[1725627430152,0.05594662,133.67,133.63,0.05432668]
[1725627430558,3.79714662,133.67,133.63,0.05432668]
[1725627430760,0.05594662,133.67,133.63,0.05432668]
[1725627431664,0.05594662,133.67,133.63,3.79632668]
[1725627431859,0.05594662,133.67,133.63,0.05432668]
[1725627432567,0.05594662,133.67,133.55,5.3201]
[1725627432568,43.12,133.66,133.55,5.3201]
[1725627432761,2.6338,133.65,133.55,7.9853]
[1725627433460,2.6338,133.65,133.56,3.7439]
[1725627433762,2.6338,133.65,133.55,7.9853]
[1725627433969,0.05236438,133.62,133.55,7.9853]
[1725627434358,0.05236438,133.62,133.55,9.01]
[1725627434561,0.05236438,133.62,133.55,5.2657]
[1725627435063,0.05236438,133.62,133.56,1.37552006]
[1725627435259,0.05236438,133.62,133.56,2.7748]
[1725627435460,0.05236438,133.62,133.61,3.7427]
[1725627435864,2.7024,133.69,133.58,43.12]
[1725627436059,2.7024,133.69,133.6,0.04816562]
[1725627436260,2.7024,133.69,133.65,3.7414]
[1725627436460,2.7024,133.69,133.6,43.12]
[1725627436667,43.12,133.76,133.63,43.12]
[1725627436964,2.723,133.75,133.61,43.12]
[1725627437164,43.12,133.73,133.61,43.12]
[1725627437365,3.7404,133.7,133.62,3.7423]
[1725627437668,3.7404,133.7,133.59,3.79153445]
[1725627437862,2.7243,133.72,133.58,43.12]
[1725627438062,2.7243,133.72,133.61,43.12]
[1725627438268,2.7243,133.72,133.62,4.08339405]
[1725627438567,2.7243,133.72,133.62,2.7084]
[1725627438757,2.7243,133.72,133.61,43.12]
[1725627438962,2.7243,133.72,133.58,43.12]
[1725627439159,43.12,133.71,133.59,1.37526284]
[1725627439461,43.12,133.68,133.57,2.7084]
[1725627439759,6.44663684,133.67,133.58,3.7434]
[1725627439959,43.12,133.66,133.53,43.12]
[1725627440161,0.04840098,133.64,133.61,0.04961642]
[1725627440363,3.7422,133.63,133.61,0.04961642]
[1725627440565,3.7422,133.63,133.57,3.7437]
[1725627440963,3.79740559,133.63,133.57,3.7437]
[1725627441468,3.79740559,133.63,133.59,0.0551605]